[Event "Oceania Zonal Women 2023"]
[Site "Melbourne"]
[Date "2023.01.23"]
[Round "1.6"]
[White "Hardegen, Kathryn"]
[Black "Xu, Luna Yuexiu"]
[Result "0-1"]
[ECO "B92"]
[WhiteElo "1887"]
[BlackElo "1446"]
[Annotator "NA COMBH"]
[PlyCount "68"]
[EventDate "2023.01.09"]
[EventType "swiss"]
[EventCountry "AUS"]
[SourceTitle "playchess.com"]
[Source "ChessBase"]
[SourceQuality "1"]
[TimeControl "5400+30"]

1. e4 {[%emt 0:00:04]} c5 {[%emt 0:00:14]} 2. Nf3 {[%emt 0:00:29]} d6 {[%emt 0:00:00]} 3. d4 {[%emt 0:00:25]} cxd4 {[%emt 0:00:07]} 4. Nxd4 {[%emt 0:00:04]} Nf6 {[%emt 0:00:18]} 5. Nc3 {[%emt 0:01:50]} a6 {[%emt 0:00:07]} 6. Be2 {[%emt 0:00:37]} e5 {[%emt 0:00:11]} 7. Nf3 {[%emt 0:02:33]} h6 {[%emt 0:01:20]} 8. h3 {[%emt 0:02:31]} Be7 {[%emt 0:01:18]} 9. Be3 {[%emt 0:02:31]} Be6 {[%emt 0:00:16]} 10. O-O {[%emt 0:03:32]} O-O {[%emt 0:01:17]} 11. a4 {[%emt 0:03:06]} Nbd7 {[%emt 0:03:05]} 12. Nd2 {[%emt 0:03:24]} Rc8 {[%emt 0:03:30]} 13. a5 {[%emt 0:04:12]} d5 {[%emt 0:06:38]} 14. exd5 {[%emt 0:00:59]} Nxd5 {[%emt 0:00:07]} 15. Nxd5 {[%emt 0:01:13]} Bxd5 {[%emt 0:00:09]} 16. Nf3 {[%emt 0:11:39]} Bc6 {[%emt 0:01:46]} 17. c3 {[%emt 0:03:05]} f5 {[%emt 0:01:51]} 18. Qb3+ {[%emt 0:03:52]} Kh8 {[%emt 0:00:32]} 19. Rfd1 {[%emt 0:02:01]} Bxf3 {[%emt 0:02:15]} 20. Bxf3 {[%emt 0:00:58]} e4 {[%emt 0:00:30]} 21. Be2 {[%emt 0:01:52]} Qc7 {[%emt 0:04:54]} 22. Qe6 {[%emt 0:08:22]} Nc5 {[%emt 0:01:44]} 23. Bxc5 {[%emt 0:04:22]} Bxc5 {[%emt 0:01:30]} 24. Rd7 {[%emt 0:06:35]} Qg3 {[%emt 0:00:11]} 25. Rf1 {[%emt 0:00:35]} Qg5 {[%emt 0:06:46]} 26. Rxb7 {[%emt 0:06:19]} f4 {[%emt 0:00:30]} 27. Qg4 {[%emt 0:06:35]} Qf6 {[%emt 0:00:37]} 28. Bxa6 {[%emt 0:03:09]} f3 {[%emt 0:02:01]} 29. gxf3 {[%emt 0:03:40]} exf3 {[%emt 0:00:46]} 30. Bb5 {[%emt 0:02:34]} Bd6 {[%emt 0:01:58]} 31. Re1 {[%emt 0:01:39]} Rc5 {[%emt 0:01:17]} 32. Re6 {[%emt 0:00:48]} Qg5 {[%emt 0:03:20]} 33. Rg6 {[%emt 0:03:01]} Rxb5 {[%emt 0:01:35]} 34. Rxb5 {[%emt 0:01:24]} Qc1# {[%emt 0:00:43]} 0-1

[Event "Oceania Zonal Women 2023"]
[Site "Melbourne"]
[Date "2023.01.26"]
[Round "4.1"]
[White "Ryjanova, Julia"]
[Black "Vincent Alaina"]
[Result "1-0"]
[ECO "D26"]
[WhiteElo "2288"]
[BlackElo "1897"]
[Annotator "TA"]
[PlyCount "55"]
[EventDate "2023.01.09"]
[EventType "swiss"]
[EventCountry "AUS"]
[SourceTitle "playchess.com"]
[Source "ChessBase"]
[SourceQuality "1"]
[TimeControl "5400+30"]

{[%evp 12,55,36,18,47,13,14,6,26,13,37,25,25,20,29,28,34,33,59,41,161,167,148,135,147,168,967,967,1000,965,1170,1131,1170,1116,29960,5891,29972,29972,29992,29993,29993,29984,29984,29985,29990,29985]} 1. d4 {[%emt 0:01:12]} d5 {[%emt 0:00:22]} 2. c4 {[%emt 0:00:45]} dxc4 {[%emt 0:00:17]} 3. e3 {[%emt 0:09:37]} Nf6 {[%emt 0:01:08]} 4. Bxc4 {[%emt 0:00:28]} e6 {[%emt 0:00:16]} 5. Nf3 {[%emt 0:02:07]} c5 {[%emt 0:00:44]} 6. O-O {[%emt 0:04:49]} Nc6 {[%emt 0:02:30]} 7. a3 {[%emt 0:02:10]} Qc7 {[%emt 0:07:15] [#] D26: Queen's Gambit Accepted: 4 e3 e6 5 Bxc5 c5 sidelines.} 8. Qc2 $146 {[%emt 0:11:08]} ({Predecessor:} 8. dxc5 Bxc5 9. b4 Bd6 10. Bb2 a6 11. Nbd2 b5 12. Bb3 Bb7 13. Rc1 Rd8 14. Qe2 Qe7 15. Rfd1 {0-1 Kokotovic,A (2144)-Nomin Erdene,D (2421) Novi Sad Serbian op 2016 (1)}) 8... cxd4 {[%emt 0:02:55]} 9. exd4 {[%emt 0:00:14]} Bd6 {[%emt 0:00:14] The position is equal.} 10. Qe2 {[%emt 0:18:17]} a6 {[%emt 0:03:11]} (10... O-O $5 {[%cal Re6e5]}) 11. d5 {[%emt 0:07:11]} (11. Bg5 {keeps more tension.} Ng4 12. d5 h6 13. Bd2) 11... Ne5 {[%emt 0:01:44]} 12. Nxe5 {[%emt 0:00:44]} Bxe5 {[%emt 0:00:11]} 13. dxe6 {[%emt 0:00:49]} fxe6 {[%emt 0:02:49]} 14. f4 {[%emt 0:06:06]} Bd4+ {[%emt 0:00:29]} 15. Kh1 {[%emt 0:00:05] Strongly threatening Nd2.} Ng4 {[%emt 0:01:59]} 16. Bxe6 $18 {[%emt 0:11:49]} Nf2+ {[%emt 0:01:10]} 17. Rxf2 {[%emt 0:00:35]} Qxc1+ {[%emt 0:00:38]} 18. Rf1 {[%emt 0:00:08]} Qxb2 {[%emt 0:01:38]} (18... Qe3 19. Qxe3 Bxe3) 19. Nd2 {[%emt 0:00:43][%cal Bb1d2,Bd2f3,Bf3e5,Be5d7,Bd7c5][%mdl 32]} (19. Bxc8+ $2 {loses.} Qxe2 $19) 19... Kf8 {[%emt 0:02:50]} 20. Rab1 {[%emt 0:03:01]} Qxa3 {[%emt 0:03:36] Black is weak on the light squares} 21. Bxc8 {[%emt 0:02:11][%cal Of1e1] [#] And now Rfe1! would win.} Rxc8 {[%emt 0:00:13]} 22. Rxb7 {[%emt 0:00:06] Threatening mate with Qe6.} Qe3 {[%emt 0:05:33] Prevents Qe6.} 23. Qxa6 {[%emt 0:04:23] White threatens Qd6+ and mate.} Bc5 {[%emt 0:00:38]} 24. Nf3 {[%emt 0:01:47] White mates.} Re8 {[%emt 0:07:35]} 25. Ne5 {[%emt 0:00:53]} Qe4 {[%emt 0:02:57]} 26. Nd7+ {[%emt 0:01:32]} Kg8 {[%emt 0:00:12]} 27. Nxc5 {[%emt 0:00:07]} Qd5 {[%emt 0:00:30]} 28. Qa1 {[%emt 0:00:57] Weighted Error Value: White=0.05 (flawless) /Black=0.88} 1-0

[Event "Oceania Zonal Women 2023"]
[Site "Melbourne"]
[Date "2023.01.26"]
[Round "4.2"]
[White "Punsalan, Vyanla M"]
[Black "Zhang, Jilin"]
[Result "1-0"]
[ECO "B22"]
[WhiteElo "1989"]
[BlackElo "2212"]
[Annotator "TA"]
[PlyCount "73"]
[EventDate "2023.01.09"]
[EventType "swiss"]
[EventCountry "AUS"]
[SourceTitle "playchess.com"]
[Source "ChessBase"]
[SourceQuality "1"]
[TimeControl "5400+30"]

{[%evp 9,73,2,5,-2,0,-5,-8,-22,-14,-25,-12,-25,-30,-29,-33,-33,-37,-35,-14,-5,26,8,25,0,0,0,0,0,0,0,14,0,80,80,188,191,338,341,317,338,312,212,321,310,788,764,711,619,883,906,883,811,29949,9539,1318,9668,29957,10027,29960,11854,5214,6014,5195,5165,2839,2237]} 1. e4 {[%emt 0:00:07]} c5 {[%emt 0:00:12][%cal Bc7c5,Bc5d4][%mdl 32]} 2. c3 {[%emt 0:00:20]} Nf6 {[%emt 0:00:14]} 3. e5 {[%emt 0:00:33]} Nd5 {[%emt 0:00:07]} 4. d4 {[%emt 0:00:35]} cxd4 {[%emt 0:00:18]} 5. Nf3 {[%emt 0:00:50]} d6 {[%emt 0:01:53]} 6. Bb5+ {[%emt 0:07:22] B22: Sicilian: 2 c3.} (6. Nxd4 dxe5 7. Nc2 Nc6 $15) 6... Bd7 {[%emt 0:03:01]} 7. Bxd7+ {[%emt 0:00:44]} (7. Nxd4 dxe5 8. Bxd7+ Qxd7 $17) 7... Qxd7 {[%emt 0:00:27]} 8. O-O {[%emt 0:07:13] The position is equal.} (8. Nxd4 dxe5 9. Nf3 Nc6 $17) 8... e6 {[%emt 0:02:39]} 9. cxd4 {[%emt 0:07:00]} Nc6 {[%emt 0:01:54]} 10. Nc3 {[%emt 0:04:35]} Nxc3 {[%emt 0:04:53]} 11. bxc3 {[%emt 0:00:34]} dxe5 {[%emt 0:00:36]} 12. Nxe5 {[%emt 0:01:04]} Nxe5 {[%emt 0:00:32]} 13. dxe5 {[%emt 0:00:06]} Bc5 {[%emt 0:05:03]} 14. Qg4 {[%emt 0:05:10] [#]} O-O-O $146 {[%emt 0:19:55]} ({Predecessor:} 14... O-O 15. Bg5 Kh8 16. Rad1 Qc7 17. Qe4 Be7 18. Bxe7 Qxe7 19. Rd6 Qc7 20. Qd4 Qa5 {0-1 Garma,C (2346)-Gu,X (2286) Manila PGMA Cup 3rd 2008 (6)}) 15. Bg5 {[%emt 0:09:20]} Rdg8 {[%emt 0:03:08]} 16. Rad1 {[%emt 0:06:32]} Qc6 {[%emt 0:01:25]} 17. Rd3 {[%emt 0:02:19]} f6 {[%emt 0:13:24]} 18. Be3 {[%emt 0:03:58]} (18. exf6 $2 gxf6 19. Re1 Rxg5 $19) 18... Bxe3 {[%emt 0:02:12]} 19. fxe3 {[%emt 0:05:30]} fxe5 {[%emt 0:04:48]} (19... f5 $5 {[%cal Rf5g4]} 20. Qb4 Rd8 $11) 20. Rfd1 {[%emt 0:03:03]} Re8 {[%emt 0:08:29]} (20... g6 $11 {keeps the balance.}) 21. Qxg7 $16 {[%emt 0:07:11] White is more active. Black is on the road to losing.} Kb8 {[%emt 0:10:12]} (21... Reg8 $16 22. Qd7+ (22. Qxe5 $2 Qxg2#) 22... Qxd7 23. Rxd7 Rg4) 22. Qxe5+ $18 {[%emt 0:02:30]} Ka8 {[%emt 0:00:07] [#]} (22... Qc7 {was worth a try.} 23. Qxc7+ Kxc7 24. Rd7+ Kb8) 23. Qxh8 $3 {[%emt 0:04:24][%mdl 576] Decoy} Rxh8 {[%emt 0:00:04]} 24. Rd8+ {[%emt 0:00:08]} Qc8 {[%emt 0:00:04]} 25. Rxc8+ {[%emt 0:00:21]} Rxc8 {[%emt 0:00:04][%mdl 4096] Endgame KR-KR} 26. Rd7 {[%emt 0:01:06]} a5 $2 {[%emt 0:00:43]} (26... Rh8 27. g4 a5) 27. Rxh7 {[%emt 0:01:16]} Rxc3 {[%emt 0:00:05]} 28. h4 {[%emt 0:00:31][%cal Bh2h4,Bh4h5,Bh5h6,Bh6h7][%mdl 32]} Ra3 {[%emt 0:00:28]} 29. h5 {[%emt 0:02:07]} Rxa2 {[%emt 0:06:35]} 30. h6 {[%emt 0:04:05]} Ra4 {[%emt 0:03:12]} 31. Re7 {[%emt 0:04:36]} Rh4 {[%emt 0:00:48]} 32. h7 {[%emt 0:00:21] White threatens Re8+ and mate.} (32. Rxe6 a4 33. Rd6 a3 $14) 32... Ka7 {[%emt 0:01:24]} 33. g3 {[%emt 0:01:46][%cal Bg2g3,Bg3g4,Bg4g5,Bg5g6][%mdl 32]} (33. Rxe6 Rxh7 34. Rd6 a4 $19) 33... Rh6 {[%emt 0:04:07] [#]} 34. g4 $1 {[%emt 0:00:28]} a4 {[%emt 0:00:47] White is clearly winning.} 35. g5 {[%emt 0:00:19]} Rh5 {[%emt 0:01:19]} 36. g6 {[%emt 0:01:35] Intending Re8 and mate.} (36. Rxe6 $2 {too greedy.} Rxh7 37. Re5 Ka6 $19) 36... a3 {[%emt 0:00:04]} 37. Rd7 {[%emt 0:01:22] Weighted Error Value: White=0.05 (flawless) /Black=0.76} (37. Rxe6 {gets mated.} a2 38. Kf2 a1=Q 39. Rd6 Qe5 40. Ke2 Qh2+ 41. Kd3 Qxd6+ 42. Ke2 Qxg6 43. h8=Q Rxh8 44. Kd2 Rh2+ 45. Kc3 Qe4 46. Kb3 b5 47. Kc3 Qc4#) 1-0

[Event "Oceania Zonal Women 2023"]
[Site "Melbourne"]
[Date "2023.01.26"]
[Round "4.3"]
[White "Middleton, Jody"]
[Black "Fan, Chloe"]
[Result "1/2-1/2"]
[ECO "D10"]
[WhiteElo "1748"]
[BlackElo "1554"]
[Annotator "NA COMBH"]
[PlyCount "60"]
[EventDate "2023.01.09"]
[EventType "swiss"]
[EventCountry "AUS"]
[SourceTitle "playchess.com"]
[Source "ChessBase"]
[SourceQuality "1"]
[TimeControl "5400+30"]

1. d4 {[%emt 0:00:06]} d5 {[%emt 0:00:06]} 2. c4 {[%emt 0:00:18]} c6 {[%emt 0:00:04]} 3. cxd5 {[%emt 0:00:05]} cxd5 {[%emt 0:00:07]} 4. Bf4 {[%emt 0:09:54]} Nf6 {[%emt 0:00:07]} 5. Nc3 {[%emt 0:00:22]} Nc6 {[%emt 0:00:06]} 6. e3 {[%emt 0:00:11]} a6 {[%emt 0:00:05]} 7. Bd3 {[%emt 0:00:30]} Bg4 {[%emt 0:01:27]} 8. Nge2 {[%emt 0:00:09]} e6 {[%emt 0:00:58]} 9. O-O {[%emt 0:00:31]} Be7 {[%emt 0:00:46]} 10. Rc1 {[%emt 0:01:49]} O-O {[%emt 0:01:28]} 11. a3 {[%emt 0:02:44]} Rc8 {[%emt 0:03:07]} 12. f3 {[%emt 0:06:24]} Bh5 {[%emt 0:00:13]} 13. Na4 {[%emt 0:03:01]} Bg6 {[%emt 0:08:25]} 14. h3 {[%emt 0:04:34]} b5 {[%emt 0:09:59]} 15. Nc5 {[%emt 0:00:27]} Qb6 {[%emt 0:01:12]} 16. b4 {[%emt 0:07:37]} Qa7 {[%emt 0:03:49]} 17. Bxg6 {[%emt 0:04:29]} hxg6 {[%emt 0:00:07]} 18. Qb3 {[%emt 0:01:54]} Nd7 {[%emt 0:16:36]} 19. Bh2 {[%emt 0:04:16]} Nb6 {[%emt 0:02:46]} 20. Rfd1 {[%emt 0:07:40]} Rfd8 {[%emt 0:03:47]} 21. e4 {[%emt 0:09:11]} Nc4 {[%emt 0:03:51]} 22. e5 {[%emt 0:06:17]} a5 {[%emt 0:05:13]} 23. Nc3 {[%emt 0:06:53]} a4 {[%emt 0:01:25]} 24. Qa2 {[%emt 0:00:08]} Qb6 {[%emt 0:01:01]} 25. Nb1 {[%emt 0:02:21]} Ne3 {[%emt 0:08:54]} 26. Rd3 {[%emt 0:01:00]} Nc4 {[%emt 0:03:08]} 27. Kh1 {[%emt 0:02:48]} Rc7 {[%emt 0:02:15]} 28. Qf2 {[%emt 0:02:46]} Qa7 {[%emt 0:05:50]} 29. f4 {[%emt 0:03:07]} Bxc5 {[%emt 0:04:06]} 30. dxc5 {[%emt 0:00:27]} Rcd7 {[%emt 0:00:48]} 1/2-1/2

[Event "Oceania Zonal Women 2023"]
[Site "Melbourne"]
[Date "2023.01.26"]
[Round "4.4"]
[White "Szuveges, Narelle"]
[Black "Zhang, Jasmine Haomo"]
[Result "1-0"]
[ECO "D35"]
[WhiteElo "1566"]
[BlackElo "1949"]
[Annotator "TA"]
[PlyCount "43"]
[EventDate "2023.01.09"]
[EventType "swiss"]
[EventCountry "AUS"]
[SourceTitle "playchess.com"]
[Source "ChessBase"]
[SourceQuality "1"]
[TimeControl "5400+30"]

{[%evp 17,43,0,0,0,13,0,5,-14,0,-8,27,24,41,35,33,34,33,13,12,15,11,-7,-5,-15,418,415,352,368]} 1. d4 {[%emt 0:00:02]} d5 {[%emt 0:00:05]} 2. c4 {[%emt 0:00:05]} e6 {[%emt 0:00:05]} 3. Nc3 {[%emt 0:00:06]} Be7 {[%emt 0:00:05]} 4. cxd5 {[%emt 0:01:00]} exd5 {[%emt 0:00:05]} 5. Bf4 {[%emt 0:00:28]} c6 {[%emt 0:00:06]} 6. e3 {[%emt 0:00:20]} Bf5 {[%emt 0:00:11]} 7. Nf3 {[%emt 0:00:17]} Nf6 {[%emt 0:00:41]} 8. Be2 {[%emt 0:00:11] Recently 8.Nh4 got a lot of attention.} Nbd7 {[%emt 0:02:01]} 9. O-O {[%emt 0:00:50]} O-O {[%emt 0:00:11]} 10. Rc1 {[%emt 0:02:39] D35: Queen's Gambit Declined: Exchange Variation.} Re8 {[%emt 0:02:21]} 11. Nh4 {[%emt 0:04:42]} Be6 {[%emt 0:01:16]} 12. Nf3 {[%emt 0:03:22] [#] The position is equal.} Ne4 $146 {[%emt 0:02:17]} ({Predecessor:} 12... Bg4 13. Qc2 Nf8 14. Bg5 Ng6 15. h3 Be6 16. Bd3 Nd7 17. Bxe7 Qxe7 18. Ne2 Ndf8 {½-½ Hoefner,C (1836)-Kohn,S (2135) Mittelrhein-chT 1112 2011 (5.6)}) 13. Ne5 {[%emt 0:07:44]} Bg5 {[%emt 0:03:12]} 14. Bxg5 {[%emt 0:04:10]} Qxg5 {[%emt 0:05:01]} (14... Nxg5 {simplifies} 15. Bd3 Nxe5 16. dxe5 f5) 15. f4 {[%emt 0:00:42]} Qh6 {[%emt 0:01:14]} 16. Nxe4 {[%emt 0:00:59]} dxe4 {[%emt 0:06:41]} 17. a3 {[%emt 0:01:38]} Nb6 {[%emt 0:04:31]} 18. Qe1 {[%emt 0:04:18]} f6 {[%emt 0:06:21]} 19. Ng4 {[%emt 0:08:41]} Qg6 {[%emt 0:01:19]} 20. Qg3 {[%emt 0:05:38][%cal Of4f5] Threatens to win with f5!} Nd5 $2 {[%emt 0:04:54][%mdl 8192] [#]} (20... Kf8 $11 {and Black has nothing to worry.}) 21. f5 $1 $18 {[%emt 0:05:40][%mdl 512]} Bxf5 {[%emt 0:00:17] [#]} 22. Rxf5 $1 {[%emt 0:00:14][%mdl 512] Weighted Error Value: White=0.06 (flawless) /Black=0.66} 1-0

[Event "Oceania Zonal Women 2023"]
[Site "Melbourne"]
[Date "2023.01.26"]
[Round "4.5"]
[White "Quek, Shi Ning Kristine"]
[Black "Zeng, Vera"]
[Result "0-1"]
[ECO "C54"]
[WhiteElo "1807"]
[BlackElo "1527"]
[Annotator "NA COMBH"]
[PlyCount "94"]
[EventDate "2023.01.09"]
[EventType "swiss"]
[EventCountry "AUS"]
[SourceTitle "playchess.com"]
[Source "ChessBase"]
[SourceQuality "1"]
[TimeControl "5400+30"]

1. e4 {[%emt 0:00:27]} e5 {[%emt 0:00:08]} 2. Nf3 {[%emt 0:00:05]} Nc6 {[%emt 0:00:06]} 3. Bc4 {[%emt 0:00:09]} Bc5 {[%emt 0:00:06]} 4. c3 {[%emt 0:00:06]} Nf6 {[%emt 0:00:07]} 5. d4 {[%emt 0:00:08]} exd4 {[%emt 0:00:05]} 6. e5 {[%emt 0:00:07]} d5 {[%emt 0:01:39]} 7. Bb5 {[%emt 0:00:07]} Ne4 {[%emt 0:02:12]} 8. cxd4 {[%emt 0:00:14]} Bb4+ {[%emt 0:01:40]} 9. Nbd2 {[%emt 0:00:11]} Nxd2 {[%emt 0:00:32]} 10. Bxd2 {[%emt 0:00:12]} Bxd2+ {[%emt 0:00:12]} 11. Qxd2 {[%emt 0:00:21]} Bd7 {[%emt 0:02:19]} 12. Bd3 {[%emt 0:02:57]} Qe7 {[%emt 0:02:14]} 13. O-O {[%emt 0:00:59]} Bg4 {[%emt 0:06:03]} 14. Be2 {[%emt 0:07:45]} O-O {[%emt 0:01:28]} 15. Qf4 {[%emt 0:03:25]} Bxf3 {[%emt 0:02:45]} 16. Bxf3 {[%emt 0:03:17]} Rad8 {[%emt 0:00:41]} 17. Rad1 {[%emt 0:17:21]} Rfe8 {[%emt 0:03:32]} 18. Qg3 {[%emt 0:06:19]} Qb4 {[%emt 0:04:01]} 19. e6 {[%emt 0:02:55]} Rxe6 {[%emt 0:01:35]} 20. Qxc7 {[%emt 0:00:28]} Re7 {[%emt 0:00:57]} 21. Qf4 {[%emt 0:01:37]} Qxb2 {[%emt 0:01:55]} 22. Rd2 {[%emt 0:01:56]} Qb4 {[%emt 0:01:18]} 23. h4 {[%emt 0:04:11]} Ne5 {[%emt 0:02:28]} 24. Rdd1 {[%emt 0:06:15]} Nxf3+ {[%emt 0:01:11]} 25. Qxf3 {[%emt 0:00:18]} Re4 {[%emt 0:02:18]} 26. Rb1 {[%emt 0:00:14]} Qe7 {[%emt 0:01:20]} 27. g3 {[%emt 0:01:08]} Rxd4 {[%emt 0:01:08]} 28. Rfe1 {[%emt 0:01:08]} Re4 {[%emt 0:01:07]} 29. Red1 {[%emt 0:00:48]} b6 {[%emt 0:00:48]} 30. Rbc1 {[%emt 0:02:47]} g6 {[%emt 0:01:01]} 31. h5 {[%emt 0:02:01]} Re5 {[%emt 0:01:58]} 32. hxg6 {[%emt 0:01:56]} hxg6 {[%emt 0:00:12]} 33. Qf4 {[%emt 0:04:17]} Re4 {[%emt 0:02:26]} 34. Qf3 {[%emt 0:02:55]} Kg7 {[%emt 0:01:37]} 35. Qb3 {[%emt 0:02:40]} d4 {[%emt 0:05:23]} 36. Qd3 {[%emt 0:08:23]} Re8 {[%emt 0:06:18]} 37. Qc4 {[%emt 0:03:36]} Qf6 {[%emt 0:01:51]} 38. Rd2 {[%emt 0:04:02]} Qf3 {[%emt 0:00:53]} 39. Qf1 {[%emt 0:02:53]} R8e5 {[%emt 0:04:56]} 40. Rd3 {[%emt 0:02:35]} Qe2 {[%emt 0:02:21]} 41. Qxe2 {[%emt 0:00:38]} Rxe2 {[%emt 0:00:08]} 42. Rxd4 {[%emt 0:00:20]} Rxa2 {[%emt 0:00:12]} 43. Rc7 {[%emt 0:00:33]} Rf5 {[%emt 0:01:04]} 44. Rdd7 {[%emt 0:01:27]} Rfxf2 {[%emt 0:01:26]} 45. Rxa7 {[%emt 0:00:38]} Rg2+ {[%emt 0:00:36]} 46. Kf1 {[%emt 0:00:21]} Rxa7 {[%emt 0:00:15]} 47. Rxa7 {[%emt 0:00:05]} Rxg3 {[%emt 0:00:07]} 0-1

[Event "Oceania Zonal Women 2023"]
[Site "Melbourne"]
[Date "2023.01.26"]
[Round "4.6"]
[White "Maunders, Myiesha"]
[Black "Cheng, Chao Xin"]
[Result "1-0"]
[ECO "B87"]
[WhiteElo "1498"]
[BlackElo "1806"]
[Annotator "NA COMBH"]
[PlyCount "81"]
[EventDate "2023.01.09"]
[EventType "swiss"]
[EventCountry "AUS"]
[SourceTitle "playchess.com"]
[Source "ChessBase"]
[SourceQuality "1"]
[TimeControl "5400+30"]

1. e4 {[%emt 0:00:01]} c5 {[%emt 0:00:07]} 2. Nf3 {[%emt 0:00:04]} d6 {[%emt 0:00:47]} 3. Nc3 {[%emt 0:00:41]} Nf6 {[%emt 0:00:09]} 4. d4 {[%emt 0:00:09]} cxd4 {[%emt 0:00:07]} 5. Nxd4 {[%emt 0:00:02]} a6 {[%emt 0:00:14]} 6. Bc4 {[%emt 0:01:45]} e6 {[%emt 0:01:18]} 7. Bb3 {[%emt 0:01:09]} b5 {[%emt 0:02:04]} 8. Bg5 {[%emt 0:03:55]} Be7 {[%emt 0:02:18]} 9. Bxf6 {[%emt 0:06:45]} Bxf6 {[%emt 0:00:39]} 10. a3 {[%emt 0:02:53]} Qb6 {[%emt 0:05:07]} 11. Nde2 {[%emt 0:02:22]} Nd7 {[%emt 0:03:22]} 12. Qd2 {[%emt 0:04:53]} Nc5 {[%emt 0:08:15]} 13. Rd1 {[%emt 0:07:18]} Be7 {[%emt 0:02:50]} 14. O-O {[%emt 0:03:20]} O-O {[%emt 0:09:50]} 15. Kh1 {[%emt 0:00:25]} Bb7 {[%emt 0:01:47]} 16. f3 {[%emt 0:02:24]} Nxb3 {[%emt 0:09:38]} 17. cxb3 {[%emt 0:00:03]} Rad8 {[%emt 0:02:47]} 18. b4 {[%emt 0:07:09]} Bf6 {[%emt 0:07:51]} 19. Qf4 {[%emt 0:05:25]} Be5 {[%emt 0:08:21]} 20. Qh4 {[%emt 0:10:51]} f5 {[%emt 0:09:31]} 21. Ng3 {[%emt 0:10:26]} Rf6 {[%emt 0:05:54]} 22. exf5 {[%emt 0:01:30]} exf5 {[%emt 0:04:02]} 23. f4 {[%emt 0:10:35]} Bxc3 {[%emt 0:02:53]} 24. bxc3 {[%emt 0:00:09]} Qc6 {[%emt 0:00:23]} 25. Rf2 {[%emt 0:02:13]} Re8 {[%emt 0:02:10]} 26. Qg5 {[%emt 0:05:44]} h6 {[%emt 0:05:56]} 27. Qh5 {[%emt 0:00:13]} Rfe6 {[%emt 0:01:26]} 28. Rg1 {[%emt 0:02:37]} Qxc3 {[%emt 0:01:09]} 29. Nxf5 {[%emt 0:06:24]} Rf8 {[%emt 0:01:44]} 30. Nh4 {[%emt 0:01:32]} Qf6 {[%emt 0:00:43]} 31. f5 {[%emt 0:00:49]} Re3 {[%emt 0:00:32]} 32. Ng6 {[%emt 0:00:31]} Rfe8 {[%emt 0:00:14]} 33. Nf4 {[%emt 0:00:31]} Qg5 {[%emt 0:01:03]} 34. Qd1 {[%emt 0:00:46]} Qxf5 {[%emt 0:00:49]} 35. Qxd6 {[%emt 0:00:51]} g5 {[%emt 0:00:54]} 36. Nh5 {[%emt 0:00:50]} Qe6 {[%emt 0:01:04]} 37. Nf6+ {[%emt 0:00:27]} Kg7 {[%emt 0:00:27]} 38. Nxe8+ {[%emt 0:00:13]} Qxe8 {[%emt 0:00:05]} 39. Qf6+ {[%emt 0:00:21]} Kh7 {[%emt 0:00:45]} 40. Qf7+ {[%emt 0:00:09]} Kh8 {[%emt 0:00:06]} 41. Qxb7 {[%emt 0:00:08]} 1-0